[Event "MČR juniorů a juniorek v rapid šachu 2023"]
[Site "Czech Republic"]
[Date "2023.09.23"]
[Round "1.10"]
[White "Hurtik, Matej"]
[Black "Mikolas, Petr"]
[Result "1-0"]
[TimeControl "20 min + 5 sec per move"]
[WhiteFideId "397997"]
[BlackFideId "23713224"]
[WhiteElo "1930"]
[BlackElo "1514"]

1. e4 {[%clk 00:20:07]} {[%emt 00:00:01]} c5 {[%clk 00:19:56]} {[%emt
00:00:14]} 2. d4 {[%clk 00:20:05]} {[%emt 00:00:07]} cxd4 {[%clk 00:20:00]}
{[%emt 00:00:03]} 3. Nf3 {[%clk 00:20:08]} {[%emt 00:00:01]} d6 {[%clk
00:18:13]} {[%emt 00:01:52]} 4. Qxd4 {[%clk 00:19:45]} {[%emt 00:00:27]} Nc6
{[%clk 00:18:17]} {[%emt 00:00:02]} 5. Bb5 {[%clk 00:19:45]} {[%emt 00:00:04]}
Bd7 {[%clk 00:18:18]} {[%emt 00:00:05]} 6. Bxc6 {[%clk 00:19:48]} {[%emt
00:00:02]} Bxc6 {[%clk 00:18:22]} 7. Nc3 {[%clk 00:19:51]} {[%emt 00:00:02]}
Nf6 {[%clk 00:18:21]} {[%emt 00:00:06]} 8. Bg5 {[%clk 00:19:50]} {[%emt
00:00:05]} e6 {[%clk 00:18:25]} {[%emt 00:00:03]} 9. O-O-O {[%clk 00:19:48]}
{[%emt 00:00:05]} Be7 {[%clk 00:18:21]} {[%emt 00:00:10]} 10. Rhe1 {[%clk
00:19:51]} {[%emt 00:00:01]} O-O {[%clk 00:18:18]} {[%emt 00:00:08]} 11. Qd2
{[%clk 00:19:43]} {[%emt 00:00:13]} Qc7 {[%clk 00:11:56]} {[%emt 00:06:27]} 12.
Nd4 {[%clk 00:19:20]} {[%emt 00:00:28]} Rac8 {[%clk 00:10:06]} {[%emt
00:01:56]} 13. f3 {[%clk 00:19:18]} {[%emt 00:00:06]} a6 {[%clk 00:08:39]}
{[%emt 00:01:32]} 14. g4 {[%clk 00:18:15]} {[%emt 00:01:07]} b5 {[%clk
00:08:35]} {[%emt 00:00:10]} 15. Nce2 {[%clk 00:17:50]} {[%emt 00:00:29]} e5
{[%clk 00:06:46]} {[%emt 00:01:54]} 16. Nf5 {[%clk 00:17:48]} {[%emt 00:00:07]}
Rfd8 {[%clk 00:06:09]} {[%emt 00:00:43]} 17. Neg3 {[%clk 00:17:15]} {[%emt
00:00:38]} d5 {[%clk 00:06:03]} {[%emt 00:00:12]} 18. Nxe7+ {[%clk 00:16:20]}
{[%emt 00:00:59]} Qxe7 {[%clk 00:06:06]} {[%emt 00:00:02]} 19. Nf5 {[%clk
00:16:24]} {[%emt 00:00:01]} Qe6 {[%clk 00:05:59]} {[%emt 00:00:13]} 20. Qb4
{[%clk 00:15:58]} {[%emt 00:00:30]} Rd7 {[%clk 00:04:27]} {[%emt 00:01:37]} 21.
Bxf6 {[%clk 00:13:12]} {[%emt 00:02:49]} gxf6 {[%clk 00:04:01]} {[%emt
00:00:33]} 22. Rd3 {[%clk 00:10:07]} {[%emt 00:03:10]} dxe4 {[%clk 00:01:00]}
{[%emt 00:03:07]} 23. Rxd7 {[%clk 00:10:03]} {[%emt 00:00:09]} Bxd7 {[%clk
00:01:02]} {[%emt 00:00:02]} 24. Ne7+ {[%clk 00:10:05]} {[%emt 00:00:03]} Kg7
{[%clk 00:01:03]} {[%emt 00:00:05]} 25. Nxc8 {[%clk 00:09:55]} {[%emt
00:00:14]} Qxa2 {[%clk 00:01:05]} {[%emt 00:00:03]} 26. Nb6 {[%clk 00:09:41]}
{[%emt 00:00:19]} exf3 {[%clk 00:01:02]} {[%emt 00:00:08]} 27. Qa3 {[%clk
00:07:15]} {[%emt 00:02:30]} Qxa3 {[%clk 00:00:23]} {[%emt 00:00:45]} 28. bxa3
{[%clk 00:07:19]} {[%emt 00:00:01]} Bxg4 {[%clk 00:00:27]} {[%emt 00:00:01]} 29.
Kd2 {[%clk 00:07:00]} {[%emt 00:00:23]} f5 {[%clk 00:00:10]} {[%emt 00:00:22]}
30. Ke3 {[%clk 00:06:16]} {[%emt 00:00:49]} Kf6 {[%emt 00:00:20]} 31. Nd5+
{[%emt 00:00:13]} Ke6 {[%emt 00:00:02]} 32. Nb4 {[%emt 00:00:04]} f4+ {[%emt
00:00:06]} 33. Kf2 Kf6 {[%emt 00:01:01]} 1-0

[Event "MČR juniorů a juniorek v rapid šachu 2023"]
[Site "Czech Republic"]
[Date "2023.09.23"]
[Round "1.11"]
[White "Havelkova, Beata"]
[Black "Cibulka, Josef"]
[Result "0-1"]
[TimeControl "20 min + 5 sec per move"]
[WhiteFideId "23709405"]
[BlackFideId "23708042"]
[WhiteElo "1494"]
[BlackElo "1922"]

1. e4 {[%clk 00:20:08]} c5 {[%clk 00:20:08]} {[%emt 00:00:02]} 2. c3 {[%clk
00:20:12]} {[%emt 00:00:02]} Nc6 {[%clk 00:19:57]} {[%emt 00:00:16]} 3. Nf3
{[%clk 00:19:56]} {[%emt 00:00:21]} d5 {[%clk 00:19:38]} {[%emt 00:00:24]} 4.
exd5 {[%clk 00:19:52]} {[%emt 00:00:09]} Qxd5 {[%clk 00:19:41]} {[%emt
00:00:01]} 5. d4 {[%clk 00:19:56]} {[%emt 00:00:02]} e6 {[%clk 00:18:46]}
{[%emt 00:01:00]} 6. Bd3 {[%clk 00:19:47]} {[%emt 00:00:13]} Bd7 {[%clk
00:18:21]} {[%emt 00:00:30]} 7. Be3 {[%clk 00:19:32]} {[%emt 00:00:20]} cxd4
{[%clk 00:18:11]} {[%emt 00:00:14]} 8. cxd4 {[%clk 00:18:28]} {[%emt 00:01:10]}
Bb4+ {[%clk 00:17:25]} {[%emt 00:00:51]} 9. Nc3 {[%clk 00:18:29]} {[%emt
00:00:04]} Nf6 {[%clk 00:17:19]} {[%emt 00:00:11]} 10. O-O {[%clk 00:18:22]}
{[%emt 00:00:12]} Bxc3 {[%clk 00:17:20]} {[%emt 00:00:05]} 11. bxc3 {[%clk
00:18:25]} {[%emt 00:00:01]} O-O {[%clk 00:17:07]} {[%emt 00:00:17]} 12. Bc2
{[%clk 00:17:30]} {[%emt 00:01:01]} Na5 {[%clk 00:16:25]} {[%emt 00:00:47]} 13.
Ne5 {[%clk 00:16:17]} {[%emt 00:01:17]} Bb5 {[%clk 00:15:31]} {[%emt 00:00:59]}
14. Re1 {[%clk 00:15:16]} {[%emt 00:01:06]} Nc4 {[%clk 00:15:12]} {[%emt
00:00:24]} 15. Bg5 {[%clk 00:12:00]} {[%emt 00:03:22]} Bc6 {[%clk 00:11:35]}
{[%emt 00:03:43]} 16. f3 {[%clk 00:09:53]} {[%emt 00:02:11]} Nxe5 {[%clk
00:06:09]} {[%emt 00:05:31]} 17. Rxe5 {[%clk 00:09:53]} {[%emt 00:00:06]} Qd8
{[%clk 00:06:11]} {[%emt 00:00:02]} 18. Qd3 {[%clk 00:09:17]} {[%emt 00:00:40]}
Re8 {[%clk 00:04:49]} {[%emt 00:01:28]} 19. Bxf6 {[%clk 00:06:56]} {[%emt
00:02:27]} gxf6 {[%clk 00:03:39]} {[%emt 00:01:14]} 20. Qxh7+ {[%clk 00:06:58]}
{[%emt 00:00:03]} Kf8 {[%clk 00:03:43]} {[%emt 00:00:01]} 21. Re3 {[%clk
00:03:37]} {[%emt 00:03:26]} Qa5 {[%clk 00:02:51]} {[%emt 00:00:57]} 22. Bb3
{[%clk 00:03:19]} {[%emt 00:00:24]} Rad8 {[%clk 00:01:03]} {[%emt 00:01:53]} 23.
Rae1 {[%clk 00:03:21]} {[%emt 00:00:04]} b5 {[%clk 00:00:50]} {[%emt 00:00:17]}
24. Qh8+ {[%clk 00:01:54]} {[%emt 00:01:31]} Ke7 {[%clk 00:00:54]} {[%emt
00:00:02]} 25. Rxe6+ {[%clk 00:01:28]} {[%emt 00:00:31]} fxe6 {[%clk 00:00:44]}
{[%emt 00:00:16]} 26. Rxe6+ {[%clk 00:01:31]} Kd7 {[%clk 00:00:44]} {[%emt
00:00:06]} 27. Qg7+ {[%clk 00:01:05]} {[%emt 00:00:30]} Kc8 {[%clk 00:00:45]}
{[%emt 00:00:04]} 28. Rxc6+ {[%clk 00:01:07]} {[%emt 00:00:03]} Kb8 {[%clk
00:00:48]} {[%emt 00:00:02]} 29. Qxf6 {[%clk 00:00:46]} {[%emt 00:00:26]} Qa3
{[%clk 00:00:33]} {[%emt 00:00:21]} 30. Qf4+ {[%clk 00:00:26]} {[%emt
00:00:24]} Ka8 {[%clk 00:00:33]} {[%emt 00:00:04]} 31. Qd2 {[%clk 00:00:18]}
{[%emt 00:00:13]} Qe7 {[%clk 00:00:26]} {[%emt 00:00:13]} 32. Re6 {[%clk
00:00:20]} {[%emt 00:00:03]} Qd7 {[%clk 00:00:23]} {[%emt 00:00:08]} 33. Rxe8
{[%clk 00:00:23]} {[%emt 00:00:02]} Rxe8 {[%clk 00:00:27]} {[%emt 00:00:01]} 34.
h4 {[%clk 00:00:20]} {[%emt 00:00:08]} a5 {[%clk 00:00:26]} {[%emt 00:00:07]}
35. a3 {[%clk 00:00:15]} {[%emt 00:00:09]} Qe7 {[%clk 00:00:29]} {[%emt
00:00:02]} 36. h5 {[%clk 00:00:12]} {[%emt 00:00:08]} Qxa3 {[%clk 00:00:30]}
{[%emt 00:00:04]} 37. Bd5+ {[%clk 00:00:12]} {[%emt 00:00:06]} Ka7 {[%clk
00:00:34]} 38. Qc2 {[%clk 00:00:06]} {[%emt 00:00:12]} Qa1+ {[%clk 00:00:26]}
{[%emt 00:00:13]} 39. Kh2 {[%clk 00:00:10]} Qe1 {[%clk 00:00:28]} {[%emt
00:00:03]} 40. g3 {[%clk 00:00:09]} {[%emt 00:00:06]} Re2+ {[%clk 00:00:32]} 41.
Qxe2 {[%clk 00:00:12]} {[%emt 00:00:02]} Qxe2+ {[%clk 00:00:36]} 42. Kh3 {[%clk
00:00:17]} a4 {[%clk 00:00:37]} {[%emt 00:00:04]} 43. h6 {[%clk 00:00:21]} Qe7
{[%clk 00:00:38]} {[%emt 00:00:03]} 44. g4 {[%emt 00:00:06]} Qg5 {[%clk
00:00:41]} 45. Be4 {[%clk 00:00:15]} {[%emt 00:00:12]} Qxh6+ {[%clk 00:00:44]}
{[%emt 00:00:02]} 46. Kg3 {[%clk 00:00:19]} a3 {[%clk 00:00:48]} {[%emt
00:00:02]} 47. d5 {[%clk 00:00:23]} a2 {[%clk 00:00:51]} {[%emt 00:00:01]} 0-1

[Event "MČR juniorů a juniorek v rapid šachu 2023"]
[Site "Czech Republic"]
[Date "2023.09.23"]
[Round "1.12"]
[White "Slaby, Matej"]
[Black "Boff, Ondrej"]
[Result "0-1"]
[TimeControl "20 min + 5 sec per move"]
[WhiteFideId "23734876"]
[BlackFideId "23733950"]
[WhiteElo "1922"]
[BlackElo "1486"]

1. e4 {[%clk 00:20:06]} {[%emt 00:00:03]} c5 {[%clk 00:20:04]} {[%emt
00:00:07]} 2. Nf3 {[%clk 00:20:08]} {[%emt 00:00:03]} Nc6 {[%clk 00:20:06]}
{[%emt 00:00:03]} 3. Bb5 {[%clk 00:20:10]} {[%emt 00:00:03]} e6 {[%clk
00:19:49]} {[%emt 00:00:21]} 4. Bxc6 {[%clk 00:19:48]} {[%emt 00:00:28]} bxc6
{[%clk 00:19:43]} {[%emt 00:00:12]} 5. e5 {[%clk 00:19:41]} {[%emt 00:00:12]}
Ne7 {[%clk 00:19:14]} {[%emt 00:00:33]} 6. d3 {[%clk 00:18:55]} {[%emt
00:00:51]} Nf5 {[%clk 00:18:02]} {[%emt 00:01:16]} 7. Bg5 {[%clk 00:18:03]}
{[%emt 00:00:57]} Be7 {[%clk 00:16:57]} {[%emt 00:01:09]} 8. Bxe7 {[%clk
00:17:52]} {[%emt 00:00:17]} Qxe7 {[%clk 00:16:31]} {[%emt 00:00:30]} 9. Nbd2
{[%clk 00:17:41]} {[%emt 00:00:17]} f6 {[%clk 00:15:50]} {[%emt 00:00:46]} 10.
exf6 {[%clk 00:15:08]} {[%emt 00:02:39]} gxf6 {[%clk 00:14:48]} {[%emt
00:01:06]} 11. O-O {[%clk 00:13:57]} {[%emt 00:01:16]} Rg8 {[%clk 00:14:16]}
{[%emt 00:00:36]} 12. Nb3 {[%clk 00:13:33]} {[%emt 00:00:31]} a5 {[%clk
00:12:27]} {[%emt 00:01:53]} 13. a4 {[%clk 00:12:26]} {[%emt 00:01:13]} Qg7
{[%clk 00:10:44]} {[%emt 00:01:46]} 14. g3 {[%clk 00:11:20]} {[%emt 00:01:13]}
h5 {[%clk 00:08:51]} {[%emt 00:01:57]} 15. Qd2 {[%clk 00:09:16]} {[%emt
00:02:09]} Qg4 {[%clk 00:07:42]} {[%emt 00:01:11]} 16. Ne1 {[%clk 00:08:22]}
{[%emt 00:01:02]} d6 {[%clk 00:06:34]} {[%emt 00:01:12]} 17. Ng2 {[%clk
00:07:30]} {[%emt 00:00:58]} e5 {[%clk 00:04:45]} {[%emt 00:01:54]} 18. Rfe1
{[%clk 00:07:13]} {[%emt 00:00:23]} Be6 {[%clk 00:04:18]} {[%emt 00:00:31]} 19.
c4 {[%clk 00:04:49]} {[%emt 00:02:29]} Rb8 {[%clk 00:03:34]} {[%emt 00:00:49]}
20. Re4 {[%clk 00:02:47]} {[%emt 00:02:08]} Qg7 {[%clk 00:03:01]} {[%emt
00:00:37]} 21. Nxa5 {[%emt 00:00:59]} Nd4 {[%clk 00:02:53]} {[%emt 00:00:11]}
22. Rxd4 {[%clk 00:01:50]} {[%emt 00:00:10]} cxd4 {[%clk 00:02:38]} {[%emt
00:00:20]} 23. Nxc6 {[%clk 00:01:44]} {[%emt 00:00:12]} Rb6 {[%clk 00:02:29]}
{[%emt 00:00:13]} 24. Nb4 {[%clk 00:01:33]} {[%emt 00:00:17]} Qb7 {[%clk
00:02:16]} {[%emt 00:00:17]} 25. a5 {[%clk 00:00:48]} {[%emt 00:00:51]} Rxb4
{[%clk 00:00:30]} {[%emt 00:01:51]} 26. a6 {[%clk 00:00:51]} {[%emt 00:00:02]}
Qb6 {[%clk 00:00:24]} {[%emt 00:00:09]} 27. a7 {[%clk 00:00:50]} {[%emt
00:00:07]} Ke7 {[%clk 00:00:21]} {[%emt 00:00:07]} 28. Qe2 {[%clk 00:00:09]}
{[%emt 00:00:47]} Rxb2 {[%clk 00:00:15]} {[%emt 00:00:11]} 29. Qxh5 {[%clk
00:00:08]} {[%emt 00:00:06]} Rb1+ {[%clk 00:00:15]} {[%emt 00:00:05]} 0-1

[Event "MČR juniorů a juniorek v rapid šachu 2023"]
[Site "Czech Republic"]
[Date "2023.09.23"]
[Round "1.13"]
[White "Dobsa, Emma"]
[Black "Sulc, Jakub"]
[Result "1-0"]
[TimeControl "20 min + 5 sec per move"]
[WhiteFideId "23709391"]
[BlackFideId "394050"]
[WhiteElo "1480"]
[BlackElo "1920"]

1. e4 {[%clk 00:20:05]} {[%emt 00:28:30]} e6 {[%clk 00:20:05]} {[%emt
00:00:02]} 2. d4 {[%clk 00:20:08]} {[%emt 00:00:08]} d5 {[%clk 00:20:08]}
{[%emt 00:00:02]} 3. Bd3 {[%clk 00:20:11]} {[%emt 00:00:01]} c5 {[%clk
00:19:55]} {[%emt 00:00:17]} 4. exd5 {[%clk 00:20:15]} {[%emt 00:00:03]} Qxd5
{[%clk 00:19:04]} {[%emt 00:00:55]} 5. Nc3 {[%clk 00:20:18]} {[%emt 00:00:02]}
Qd8 {[%clk 00:17:13]} {[%emt 00:01:56]} 6. Nf3 {[%clk 00:17:53]} {[%emt
00:02:30]} Nc6 {[%clk 00:16:13]} {[%emt 00:01:06]} 7. Be3 {[%clk 00:15:36]}
{[%emt 00:02:22]} cxd4 {[%clk 00:14:30]} {[%emt 00:01:47]} 8. Nxd4 {[%clk
00:15:15]} {[%emt 00:00:26]} Nxd4 {[%clk 00:06:37]} {[%emt 00:07:59]} 9. Bxd4
{[%clk 00:15:18]} {[%emt 00:00:02]} Nf6 {[%clk 00:06:41]} {[%emt 00:00:02]} 10.
O-O {[%clk 00:10:49]} {[%emt 00:04:33]} Be7 {[%clk 00:05:47]} {[%emt 00:00:59]}
11. Be5 {[%clk 00:09:24]} {[%emt 00:01:30]} a6 {[%clk 00:04:09]} {[%emt
00:01:44]} 12. Qf3 {[%clk 00:06:57]} {[%emt 00:02:31]} O-O {[%clk 00:03:10]}
{[%emt 00:01:04]} 13. Ne4 {[%clk 00:04:18]} {[%emt 00:02:44]} Nxe4 {[%clk
00:02:36]} {[%emt 00:00:39]} 14. Bxe4 {[%clk 00:03:51]} {[%emt 00:00:33]} f6
{[%clk 00:01:00]} {[%emt 00:01:41]} 15. Bc3 {[%clk 00:02:03]} {[%emt 00:01:53]}
Qc7 {[%clk 00:00:58]} {[%emt 00:00:06]} 16. Qh5 {[%clk 00:00:09]} {[%emt
00:01:58]} f5 {[%clk 00:00:58]} {[%emt 00:00:06]} 17. Bd3 {[%clk 00:00:12]}
{[%emt 00:00:02]} e5 {[%clk 00:00:18]} {[%emt 00:00:46]} 18. Rfe1 {[%clk
00:00:13]} {[%emt 00:00:03]} e4 {[%clk 00:00:21]} {[%emt 00:00:02]} 19. Be2
{[%clk 00:00:12]} {[%emt 00:00:07]} Bd6 {[%clk 00:00:13]} {[%emt 00:00:13]} 20.
h3 {[%clk 00:00:10]} {[%emt 00:00:07]} g6 {[%clk 00:00:13]} {[%emt 00:00:05]}
21. Qh6 {[%clk 00:00:13]} {[%emt 00:00:02]} Bf4 {[%clk 00:00:12]} {[%emt
00:00:05]} 22. Qh4 {[%clk 00:00:13]} {[%emt 00:00:04]} Be6 {[%clk 00:00:10]}
{[%emt 00:00:08]} 23. Rad1 {[%clk 00:00:13]} {[%emt 00:00:05]} Be5 {[%clk
00:00:08]} {[%emt 00:00:07]} 24. Bxe5 Qxe5 {[%clk 00:00:12]} 25. c3 {[%clk
00:00:19]} {[%emt 00:00:02]} Rf7 {[%clk 00:00:15]} {[%emt 00:00:02]} 26. Rd8+
{[%clk 00:00:16]} {[%emt 00:00:08]} Rxd8 {[%clk 00:00:19]} 27. Qxd8+ {[%clk
00:00:19]} {[%emt 00:00:01]} Kg7 {[%clk 00:00:23]} 28. a3 {[%clk 00:00:19]}
{[%emt 00:00:06]} Rd7 {[%clk 00:00:27]} 29. Qb6 {[%clk 00:00:18]} {[%emt
00:00:06]} Qb8 {[%clk 00:00:08]} {[%emt 00:00:23]} 30. Rd1 {[%clk 00:00:12]}
{[%emt 00:00:11]} Rxd1+ {[%clk 00:00:10]} {[%emt 00:00:03]} 31. Bxd1 {[%clk
00:00:16]} Bd5 {[%clk 00:00:13]} {[%emt 00:00:02]} 32. Qd4+ {[%clk 00:00:20]}
{[%emt 00:00:01]} Kh6 {[%clk 00:00:17]} {[%emt 00:00:02]} 33. Qxd5 {[%clk
00:00:24]} Qc7 {[%clk 00:00:20]} {[%emt 00:00:01]} 34. Qd4 {[%clk 00:00:24]}
{[%emt 00:00:05]} Qc6 {[%clk 00:00:17]} {[%emt 00:00:08]} 35. b3 {[%clk
00:00:26]} {[%emt 00:00:03]} Qe6 {[%clk 00:00:11]} {[%emt 00:00:11]} 36. c4
{[%clk 00:00:29]} {[%emt 00:00:02]} Qe7 {[%clk 00:00:12]} {[%emt 00:00:04]} 37.
b4 {[%clk 00:00:33]} {[%emt 00:00:02]} f4 {[%clk 00:00:09]} {[%emt 00:00:07]}
38. Bc2 {[%clk 00:00:23]} {[%emt 00:00:15]} e3 {[%clk 00:00:08]} {[%emt
00:00:05]} 39. Qxf4+ {[%clk 00:00:27]} {[%emt 00:00:02]} g5 {[%clk 00:00:10]}
{[%emt 00:00:03]} 40. Qxe3 {[%clk 00:00:31]} {[%emt 00:00:02]} Qd7 {[%clk
00:00:14]} 41. h4 {[%clk 00:00:31]} {[%emt 00:00:05]} 1-0

[Event "MČR juniorů a juniorek v rapid šachu 2023"]
[Site "Czech Republic"]
[Date "2023.09.23"]
[Round "1.14"]
[White "Vilimek, Vit"]
[Black "Hruby, Filip"]
[Result "1-0"]
[TimeControl "20 min + 5 sec per move"]
[WhiteFideId "23718218"]
[BlackFideId "23721480"]
[WhiteElo "1898"]
[BlackElo "1460"]

1. e4 {[%clk 00:20:09]} c6 {[%clk 00:20:09]} {[%emt 00:00:02]} 2. d4 {[%clk
00:20:13]} {[%emt 00:00:01]} d5 {[%clk 00:20:12]} {[%emt 00:00:02]} 3. e5
{[%clk 00:20:18]} c5 {[%clk 00:20:11]} {[%emt 00:00:06]} 4. dxc5 {[%clk
00:20:22]} {[%emt 00:00:02]} Nc6 {[%clk 00:20:13]} {[%emt 00:00:03]} 5. Nf3
{[%clk 00:20:18]} {[%emt 00:00:08]} Bg4 {[%clk 00:20:16]} {[%emt 00:00:03]} 6.
Be2 {[%clk 00:20:15]} {[%emt 00:00:08]} e6 {[%clk 00:20:16]} {[%emt 00:00:05]}
7. a3 {[%clk 00:19:37]} {[%emt 00:00:43]} Bxc5 {[%clk 00:19:23]} {[%emt
00:00:57]} 8. b4 {[%clk 00:19:41]} Bb6 {[%clk 00:19:23]} {[%emt 00:00:05]} 9.
Bb2 {[%clk 00:19:45]} Bc7 {[%clk 00:18:53]} {[%emt 00:00:34]} 10. Bb5 {[%clk
00:18:25]} {[%emt 00:01:26]} Nge7 {[%clk 00:18:43]} {[%emt 00:00:15]} 11. O-O
{[%clk 00:18:27]} {[%emt 00:00:03]} a6 {[%clk 00:18:46]} {[%emt 00:00:02]} 12.
Bxc6+ {[%clk 00:18:01]} {[%emt 00:00:31]} Nxc6 {[%clk 00:18:49]} {[%emt
00:00:02]} 13. h3 {[%clk 00:18:01]} {[%emt 00:00:05]} Bxf3 {[%clk 00:18:48]}
{[%emt 00:00:06]} 14. Qxf3 {[%clk 00:17:55]} {[%emt 00:00:11]} Bxe5 {[%clk
00:18:43]} {[%emt 00:00:10]} 15. Bxe5 {[%clk 00:17:37]} {[%emt 00:00:23]} Nxe5
{[%clk 00:18:47]} {[%emt 00:00:01]} 16. Qc3 {[%clk 00:17:36]} {[%emt 00:00:06]}
Qf6 {[%clk 00:17:05]} {[%emt 00:01:47]} 17. Nd2 {[%clk 00:16:10]} {[%emt
00:01:31]} O-O {[%clk 00:16:58]} {[%emt 00:00:12]} 18. Rfe1 {[%clk 00:15:57]}
{[%emt 00:00:19]} Ng6 {[%clk 00:16:26]} {[%emt 00:00:36]} 19. Qxf6 {[%clk
00:15:50]} {[%emt 00:00:13]} gxf6 {[%clk 00:16:29]} {[%emt 00:00:02]} 20. c4
{[%clk 00:15:54]} d4 {[%clk 00:14:04]} {[%emt 00:02:30]} 21. c5 {[%clk
00:15:04]} {[%emt 00:00:55]} e5 {[%clk 00:13:19]} {[%emt 00:00:49]} 22. Ne4
{[%clk 00:14:47]} {[%emt 00:00:23]} Kg7 {[%clk 00:12:00]} {[%emt 00:01:24]} 23.
Nd6 {[%clk 00:14:51]} {[%emt 00:00:02]} Rab8 {[%clk 00:11:45]} {[%emt
00:00:19]} 24. g3 {[%clk 00:14:49]} {[%emt 00:00:07]} h6 {[%clk 00:06:34]}
{[%emt 00:05:16]} 25. a4 {[%clk 00:13:39]} {[%emt 00:01:16]} Ne7 {[%clk
00:05:06]} {[%emt 00:01:32]} 26. h4 {[%clk 00:13:05]} {[%emt 00:00:40]} Nd5
{[%clk 00:04:12]} {[%emt 00:00:57]} 27. b5 {[%clk 00:12:41]} {[%emt 00:00:31]}
a5 {[%clk 00:02:24]} {[%emt 00:01:53]} 28. Nc4 {[%clk 00:11:59]} {[%emt
00:00:47]} Ra8 {[%clk 00:02:16]} {[%emt 00:00:13]} 29. f4 {[%clk 00:12:03]}
{[%emt 00:00:01]} exf4 {[%clk 00:01:50]} {[%emt 00:00:31]} 30. gxf4 {[%clk
00:12:07]} Rfc8 {[%clk 00:01:03]} {[%emt 00:00:51]} 31. Rad1 {[%clk 00:11:45]}
{[%emt 00:00:28]} Rxc5 {[%clk 00:01:00]} {[%emt 00:00:08]} 32. Rxd4 {[%clk
00:11:49]} {[%emt 00:00:02]} Rac8 {[%clk 00:00:14]} {[%emt 00:00:50]} 33. Nd6
{[%clk 00:11:53]} {[%emt 00:00:01]} Rb8 {[%clk 00:00:17]} {[%emt 00:00:02]} 34.
Nf5+ {[%clk 00:11:56]} {[%emt 00:00:02]} Kg6 {[%clk 00:00:15]} {[%emt
00:00:05]} 35. Rxd5 {[%clk 00:12:00]} {[%emt 00:00:03]} Rxd5 {[%clk 00:00:15]}
{[%emt 00:00:06]} 36. Ne7+ {[%clk 00:12:04]} Kh5 {[%clk 00:00:11]} {[%emt
00:00:16]} 37. Nxd5 {[%clk 00:12:10]} {[%emt 00:00:02]} Kxh4 {[%clk 00:00:14]}
{[%emt 00:00:02]} 38. Kf2 {[%clk 00:11:37]} {[%emt 00:00:38]} Kg4 {[%clk
00:00:10]} {[%emt 00:00:07]} 39. Rg1+ {[%clk 00:11:35]} {[%emt 00:00:08]} Kf5
{[%clk 00:00:09]} {[%emt 00:00:05]} 40. Kf3 {[%clk 00:11:39]} {[%emt 00:00:03]}
1-0